Cogmind - Beta 11 X7 @@@ ROGUE MODE // 2021.08.20 @ 23:36:58 Player: Runia Result: Destroyed by EX-DEC with AWS/EX-DEC Performance ------------- Evolutions (1) 500 Regions Visited (5) 1000 Robots Destroyed (68) 340 Value Destroyed (1274) 1274 Prototype IDs (34) 680 Alien Tech Used (0) 0 Bonus (283) 283 TOTAL SCORE: 4077 Bonus ------- Aligned with FarCom 300 Friendly Fire -17 Cogmind --------- Core Integrity 0/400 Matter 288/300 Energy 91/100 System Corruption 10% Temperature Cool (32) Movement Treading (160) Location -9/Exiles Parts ------- > --- POWER (1) -------- (None) > --- PROPULSION (3) --- Light Treads Improved Treads > --- UTILITY (3) ------ Large Storage Unit > --- WEAPON (2) ------- Improved Medium Laser Improved Medium Laser > --- INVENTORY (15) --- Makeshift Power Source Advanced Myomer Leg Medium Matter Pod (43) Structural Scanner Hacking Suite System Purifier Improved Medium Laser XL Autogun Array Assault Cannon Assault Cannon Katana Deploy-a-Sentry Peak State ------------ > --- POWER ------------ Makeshift Power Source > --- PROPULSION ------- Light Treads Light Treads Improved Treads > --- UTILITY ---------- Improved Heat Sink Huge Storage Unit System Purifier > --- WEAPON ----------- Improved Medium Laser Improved Medium Laser > --- INVENTORY -------- Makeshift Power Source Advanced Myomer Leg Medium Matter Pod Structural Scanner Hacking Suite Improved Medium Laser XL Autogun Array Assault Cannon Assault Cannon Katana Deploy-a-Sentry [Rating: 34] Favorites ----------- Power Heavy Ion Engine Engine Heavy Ion Engine Power Core Light Nuclear Core Propulsion Light Treads Treads Light Treads Leg Aluminum Leg Wheel Armored Wheel Utility High-capacity Storage Unit Device Heat Sink Storage High-capacity Storage Unit Processor Advanced Targeting Computer Protection Medium Armor Plating Weapon Light Cannon Energy Gun Improved Medium Laser Ballistic Gun Heavy Assault Rifle Ballistic Cannon Light Cannon Launcher Grenade Launcher Special Weapon Plasma Cutter Impact Weapon Mace Slashing Weapon Katana Build | -11 -10 -10 -9 -9 -9 ------- Run | Scr Mat Min Mat Min Exi Slots Evolved 2 | . . . 2 . . Power . | . . . . . . Propulsion 1 | . . . 1 . . Utility 1 | . . . 1 . . Weapon . | . . . . . . Parts Attached 74 | . 14 9 26 4 21 Power 7 | . 1 2 2 . 2 Engine 6 | . 1 2 2 . 1 Core 1 | . . . . . 1 Reactor . | . . . . . . Propulsion 11 | . 2 2 3 . 4 Treads 10 | . 2 2 3 . 3 Leg . | . . . . . . Wheel 1 | . . . . . 1 Hover . | . . . . . . Flight . | . . . . . . Utility 13 | . 2 1 2 . 8 Device 4 | . 1 . 1 . 2 Storage 3 | . 1 . . . 2 Processor 1 | . . 1 . . . Hackware . | . . . . . . Protection 5 | . . . 1 . 4 Artifact . | . . . . . . Weapon 43 | . 9 4 19 4 7 Energy Gun 12 | . 2 1 4 2 3 Energy Cannon . | . . . . . . Ballistic Gun 2 | . . 2 . . . Ballistic Cannon 9 | . 3 . 4 . 2 Launcher 8 | . 1 1 2 2 2 Special Weapon 6 | . . . 6 . . Impact Weapon 3 | . 3 . . . . Slashing Weapon 3 | . . . 3 . . Piercing Weapon . | . . . . . . Special Melee Weapon . | . . . . . . Unidentified Prototypes 1 | . . . . . 1 Parts Lost 16 | . 1 . 2 . 13 Power 4 | . 1 . . . 3 Propulsion 4 | . . . . . 4 Utility 5 | . . . . . 5 Weapon 3 | . . . 2 . 1 Highest Loss Streak 4 | . 1 . 1 . 4 Average Slot Usage (%) 98 | . 98 100 99 100 95 Engine 11 | . 13 14 11 11 7 Treads 28 | . 26 28 33 33 27 Wheel 1 | . . . . . 5 Device 7 | . 13 2 6 . 5 Storage 12 | . 14 14 11 11 11 Processor 6 | . . 11 11 11 6 Protection 3 | . . . 4 11 8 Energy Gun 7 | . 11 . 2 10 11 Ballistic Gun 2 | . 1 2 5 . . Ballistic Cannon 11 | . 11 14 10 11 9 Launcher 2 | . . 10 . . 1 Naked Turns . | . . . . . . Heaviest Build 106 | 13 52 56 66 63 106 Greatest Support 65 | 20 40 42 65 65 65 Greatest Overweight (x) 8 | . 1 1 1 . 8 Average Overweight (x) 1 | . . 1 . . 3 Largest Inventory Capacity 25 | 8 20 20 20 20 25 Average Capacity 20 | 8 18 20 20 20 23 Most Carried 25 | 7 19 20 20 20 25 Average Carried 17 | 6 13 19 19 20 19 Final Capacity 20 | 8 20 20 20 20 15 Final Carried 20 | 7 19 20 20 20 15 Class Distribution -------------------- 95% | Mutant 4% | Scavenger-Mutant Dominant Class ---------------- Mutant | -10/Materials Mutant | -10/Mines Mutant | -9/Materials Mutant | -9/Mines Mutant | -9/Exiles Resources | -11 -10 -10 -9 -9 -9 ----------- Run | Scr Mat Min Mat Min Exi Matter Collected 1972 | 202 423 106 586 95 560 Remotely . | . . . . . . Salvage Created 1839 | 10 710 50 756 91 222 Parts 177 | 5 44 9 81 11 27 Haulers Intercepted 6 | . 1 . 5 . . Recyclers Shooed 2 | 1 . . 1 . . Parts Field Recycled . | . . . . . . Retrieved Matter . | . . . . . . Parts Self-Destructed . | . . . . . . Prevented . | . . . . . . Kills | -11 -10 -10 -9 -9 -9 ------- Run | Scr Mat Min Mat Min Exi Combat Hostiles Destroyed 40 | . 13 4 15 6 2 Guns 8 | . 7 . 1 . . Cannons 19 | . 6 1 12 . . AOE 13 | . . 3 2 6 2 Classes Destroyed 15 | 1 7 1 2 1 3 Worker 1 | . . . 1 . . Builder 5 | . 4 . 1 . . Tunneler 1 | 1 . . . . . Hauler 6 | . 1 . 5 . . Recycler 2 | . 2 . . . . Operator 3 | . 1 . 2 . . Turret 1 | . . . . . 1 Watcher 3 | . 2 . 1 . . Swarmer 15 | . 3 3 6 3 . Grunt 17 | . 10 . 5 2 . Brawler 1 | . . . . 1 . Duelist 2 | . . . 2 . . Sentry 3 | . . 1 2 . . Zionite 7 | . . . . . 7 Assembled 2 | . . . . . 2 Best Kill Streak 4 | 1 3 3 3 3 4 Combat Bots Only 3 | . 3 3 3 3 2 Max Kills in Single Turn 3 | 1 1 2 3 3 1 Gunslinging . | . . . . . . Exploded 3 | . . 2 2 3 1 Melee . | . . . . . . Uniques/NPCs Destroyed 3 | . . . . . 3 8R-AWN (-9/Exiles) EX-HEX (-9/Exiles) EX-BIN (-9/Exiles) Combat | -11 -10 -10 -9 -9 -9 -------- Run | Scr Mat Min Mat Min Exi Damage Taken 3292 | . 579 92 527 76 2018 Core 524 | . 101 13 62 12 336 Absorbed by Shields . | . . . . . . Core Remaining (%) 77 | 100 . 54 . . . Volleys Fired 195 | 2 73 7 50 4 59 Largest 2 | 2 2 2 2 2 2 Hottest 112 | 70 100 100 100 100 112 Shots Fired 359 | 4 141 11 92 5 106 Gun 202 | 4 96 4 28 1 69 Cannon 124 | . 45 4 48 1 26 Launcher 19 | . . 3 2 3 11 Special 14 | . . . 14 . . Kinetic 171 | 2 73 4 65 1 26 Thermal 169 | 2 68 4 25 1 69 Explosive 19 | . . 3 2 3 11 Electromagnetic . | . . . . . . Robot Hit Streak 14 | 3 9 6 14 2 7 Robot Miss Streak 5 | 1 4 1 3 1 5 Penetration Max . | . . . . . . Secondary Targets 1 | . . . . . 1 Max Gunslinging Chain 1 | . . . . . 1 Shots Hit Robots 218 | 3 83 6 61 3 62 Core Hits 98 | 1 31 5 32 6 23 Critical Kills . | . . . . . . Critical Parts Destroyed . | . . . . . . Critical Strikes 15 | . 6 . 2 . 7 Burn 10 | . 4 . . . 6 Blast 5 | . 2 . 2 . 1 Melee Attacks 13 | . 7 . 6 . . Impact 7 | . 7 . . . . Slashing 6 | . . . 6 . . Piercing . | . . . . . . Sneak Attacks 3 | . 2 . 1 . . Combat Hostiles . | . . . . . . Follow-up Attacks . | . . . . . . Damage Inflicted 4702 | 33 1258 215 1497 404 1295 Guns 1781 | 33 685 46 299 17 701 Cannons 1747 | . 435 54 765 21 472 Explosions 830 | . . 115 227 366 122 Melee 242 | . 138 . 104 . . Ramming . | . . . . . . Kinetic 2071 | 8 589 54 927 21 472 Thermal 1559 | 25 531 46 239 17 701 Explosive 830 | . . 115 227 366 122 Electromagnetic . | . . . . . . Impact 138 | . 138 . . . . Slashing 104 | . . . 104 . . Piercing . | . . . . . . Highest Corruption 10 | . . . 3 3 10 Average Corruption 2 | . . . 1 3 3 Corruption Purged . | . . . . . . Effects 42 | . . . 1 10 31 Message Errors 13 | . . . . 5 8 Matter Fused 14 | . . . 1 3 10 Heat Flow Errors 6 | . . . . 1 5 Energy Discharges 3 | . . . . . 3 Data Loss (minor) 6 | . . . . 1 5 Overload Shots . | . . . . . . Overflow Damage 164 | . 70 . 94 . . Projectiles 13 | . 5 . 8 . . Explosions 42 | . . . 42 . . Melee 109 | . 65 . 44 . . Knockbacks 20 | . 7 . 6 1 6 Impact . | . . . . . . Kinetic 20 | . 7 . 6 1 6 Secondary . | . . . . . . Self-Inflicted Damage 135 | . . 45 54 . 36 Shots 3 | . . 1 1 . 1 Rammed . | . . . . . . Targets Rammed . | . . . . . . Kicked . | . . . . . . Crushed . | . . . . . . Highest Temperature 226 | 40 174 156 144 93 226 Average Temperature 41 | 20 37 78 44 29 43 Received Heat Transfer 489 | . 282 . 144 18 45 Siege Activations . | . . . . . . Robots Corrupted . | . . . . . . Combat Hostiles . | . . . . . . Parts Fried 1 | . 1 . . . . Impact Corruptions 3 | . 3 . . . . Robots Melted 1 | . . . . . 1 Combat Hostiles . | . . . . . . Parts Melted 18 | . 4 1 . . 13 Heat Transferred 4514 | 74 1702 111 629 37 1961 Parts Sabotaged . | . . . . . . Parts Stolen . | . . . . . . Parts Stripped . | . . . . . . Power Chain Reactions . | . . . . . . Missiles Intercepted . | . . . . . . Alert | -11 -10 -10 -9 -9 -9 ------- Run | Scr Mat Min Mat Min Exi Peak Influence 227 | 5 227 120 208 207 . Initial 67 | . 3 12 13 67 . Average 54 | 3 46 11 82 145 . Maximum Alert Level 1 | . 1 . 1 1 . Low Security (%) 95 | 100 95 100 99 60 . Level 1 4 | . 4 . . 39 . Level 2 . | . . . . . . Level 3 . | . . . . . . Level 4 . | . . . . . . Level 5 . | . . . . . . High Security . | . . . . . . Max Security . | . . . . . . Squads Dispatched 7 | . 3 1 2 1 . Investigation 2 | . 1 1 . . . Extermination . | . . . . . . Reinforcement 4 | . 2 . 2 . . Assault 1 | . . . . 1 . Garrison . | . . . . . . Intercept . | . . . . . . Construction Impeded . | . . . . . . Haulers Reinforced . | . . . . . . Active Scanning Responses . | . . . . . . Cargo Convoy Interrupts . | . . . . . . Stealth | -11 -10 -10 -9 -9 -9 --------- Run | Scr Mat Min Mat Min Exi Distress Signals 3 | . 1 . 2 . . Communications Jammed . | . . . . . . Distress Signals . | . . . . . . Times Spotted 112 | . 28 3 36 6 39 Peak Tracking Total 9 | . 4 2 6 3 9 Tactical Retreats 11 | . 1 . . . 10 Traps | -11 -10 -10 -9 -9 -9 ------- Run | Scr Mat Min Mat Min Exi Traps Triggered 3 | . 1 . 2 . . Indirectly . | . . . . . . Trap Hack Attempts . | . . . . . . Triggered . | . . . . . . Disarmed . | . . . . . . Reprogrammed . | . . . . . . Reused . | . . . . . . Traps Extracted . | . . . . . . Installed . | . . . . . . Triggered . | . . . . . . Exploded 3 | . . . . . 3 Machines | -11 -10 -10 -9 -9 -9 ---------- Run | Scr Mat Min Mat Min Exi Machines Disabled 9 | . 1 1 1 . 6 Max in Single Turn 1 | . 1 1 1 . 1 Machines Sabotaged . | . . . . . . Garrisons Compromised . | . . . . . . Overloaded Fab Kills . | . . . . . . Fab Network Shutdowns . | . . . . . . Hacking | -11 -10 -10 -9 -9 -9 --------- Run | Scr Mat Min Mat Min Exi Machines Accessed 21 | . 6 2 10 1 2 Terminals 15 | . 6 1 7 1 . Fabricators . | . . . . . . Repair Stations 2 | . . . 2 . . Recycling Units . | . . . . . . Scanalyzers 1 | . . . 1 . . Garrison Access . | . . . . . . Total Hacks 66 | . 23 2 38 1 2 Successful 39 | . 13 1 23 . 2 Failed 25 | . 9 1 14 1 . Catastrophic 2 | . 1 1 . . . Database Lockouts 2 | . 1 . 1 . . Manual 22 | . 9 . 11 1 1 Terminals 53 | . 23 1 28 1 . Fabricators . | . . . . . . Repair Stations 4 | . . . 4 . . Recycling Units . | . . . . . . Scanalyzers 6 | . . . 6 . . Garrison Access . | . . . . . . Terminal Hacks 26 | . 11 1 12 . 2 Record 1 | . . . . . 1 Part Schematic 2 | . 2 . . . . Robot Analysis 2 | . . . 2 . . Prototype ID Bank 6 | . 2 . 4 . . Open Door 1 | . . 1 . . . Branch Access Points 1 | . . . 1 . . Emergency Access Points 1 | . 1 . . . . Terminal Index 1 | . 1 . . . . Repair Station Index 1 | . . . 1 . . Scanalyzer Index 1 | . 1 . . . . Unreport Threat 1 | . 1 . . . . Locate Traps 3 | . 2 . 1 . . Registered Prototypes 1 | . . . 1 . . Zone Layout 3 | . 1 . 2 . . EX-Prototype ID Bank 1 | . . . . . 1 Fabricator Hacks . | . . . . . . Repair Station Hacks 3 | . . . 3 . . Scan Component 2 | . . . 2 . . Repair 1 | . . . 1 . . Recycling Unit Hacks . | . . . . . . Scanalyzer 6 | . . . 6 . . Insert Component 3 | . . . 3 . . Analyze 3 | . . . 3 . . Garrison Access Hacks . | . . . . . . Unauthorized Hacks 4 | . 2 . 2 . . Terminals 4 | . 2 . 2 . . Botnet 4 | . 2 . 2 . . Fabricators . | . . . . . . Repair Stations . | . . . . . . Recycling Units . | . . . . . . Scanalyzers . | . . . . . . Garrison Access . | . . . . . . Data Cores Recovered 1 | . . . 1 . . Used 1 | . . . 1 . . Hacking Detections 16 | . 4 1 10 1 . Full Trace Events 1 | . 1 . . . . Feedback Events . | . . . . . . Feedback Blocked . | . . . . . . Robot Schematics Acquired . | . . . . . . Robots Built . | . . . . . . Matter . | . . . . . . Time . | . . . . . . Total Robot Build Rating . | . . . . . . Part Schematics Acquired 4 | . 2 . 2 . . Parts Built . | . . . . . . Matter . | . . . . . . Time . | . . . . . . Total Part Build Rating . | . . . . . . Parts Repaired 1 | . . . 1 . . Time 53 | . . . 53 . . Parts Recycled . | . . . . . . Recycled Matter . | . . . . . . Retrieved Matter . | . . . . . . Retrieved Components . | . . . . . . Parts Scanalyzed 3 | . . . 3 . . Part Schematics Acquired 2 | . . . 2 . . Parts Damaged 1 | . . . 1 . . Bothacking | -11 -10 -10 -9 -9 -9 ------------ Run | Scr Mat Min Mat Min Exi Used RIF Installer . | . . . . . . Robots Hacked . | . . . . . . Non-combat . | . . . . . . Combat . | . . . . . . Robot Hacks Applied . | . . . . . . Relay Couplers Released . | . . . . . . Robots Rewired . | . . . . . . Allies Hacked . | . . . . . . Hacks Repelled . | . . . . . . Allies | -11 -10 -10 -9 -9 -9 -------- Run | Scr Mat Min Mat Min Exi Total Allies 1 | . . . . 1 . Largest Group 1 | . . . . 1 1 Highest-Rated Group 31 | . . . . 31 31 Highest-Rated Ally 31 | . . . . 31 31 Total Orders . | . . . . . . Ally Attacks 19 | . . . . . 19 Total Damage 907 | . . . . . 907 Kills 1 | . . . . . 1 Allies Corrupted . | . . . . . . Allies Melted . | . . . . . . Turrets Deployed 2 | . . . . . 2 Intel | -11 -10 -10 -9 -9 -9 ------- Run | Scr Mat Min Mat Min Exi Robot Analysis Total 2 | . . . 2 . . Derelict Logs Recovered 2 | . . 2 . . . Drone Launches . | . . . . . . Drone Recoveries . | . . . . . . Exploration | -11 -10 -10 -9 -9 -9 ------------- Run | Scr Mat Min Mat Min Exi Turns Passed 8464 | 23 2681 1724 1901 464 1671 Spaces Moved 3683 | 14 999 648 1007 276 739 Core . | . . . . . . Treads 3248 | . 921 648 1007 276 396 Legs 92 | 14 78 . . . . Wheels 343 | . . . . . 343 Hover . | . . . . . . Flight . | . . . . . . Fastest Speed 120 | 120 120 252 158 158 158 Average Speed 204 | 120 240 257 158 158 191 Slowest Speed 260 | 120 260 260 258 158 260 Overloaded Moves . | . . . . . . Propulsion Burnouts . | . . . . . . Robots Hopped . | . . . . . . Cave-ins Triggered . | . . . . . . Exploration Rate (%) 71 | 3 96 99 89 55 85 Regions Visited 5 Branch Regions 3 Pre-discovered Areas 2 | . . 1 . . 1 Known Exits Taken 1 | . . . 1 . . Unknown Exits Taken 4 | 1 1 1 . 1 . Scrap Searched 2 | . . 1 . 1 . Spaces Dug 9 | . 5 . 4 . . Terrain Destroyed 158 | . 5 36 31 37 49 Melee 9 | . 5 . 4 . . Projectile 7 | . . . 5 . 2 AOE 142 | . . 36 22 37 47 Terrain Rammed . | . . . . . . Walls Destroyed . | . . . . . . Machines Disabled . | . . . . . . Actions | -11 -10 -10 -9 -9 -9 --------- Run | Scr Mat Min Mat Min Exi Total 4224 | 16 1136 695 1191 297 889 Wait 156 | . 13 16 73 14 40 Move 3678 | 13 998 647 1006 275 739 Hop . | . . . . . . Pick Up 60 | 1 22 6 15 . 16 Fast Attach 2 | . . 2 . . . Attach 19 | . 5 . 4 . 10 Detach . | . . . . . . Swap 53 | . 9 7 22 4 11 Drop 48 | . 9 10 15 . 14 Fire 195 | 2 73 7 50 4 59 Melee 13 | . 7 . 6 . . Ram . | . . . . . . Kick . | . . . . . . Crush . | . . . . . . Escape Stasis . | . . . . . . Rewire . | . . . . . . Trap . | . . . . . . Miscellaneous . | . . . . . . Route ------- -11/Scrapyard -10/Materials (discovered 4 exits: *Mat x3 / *Min) -10/Mines (discovered 2 exits: *Mat x2) -9/Materials (discovered 5 exits: [*Mat x3] / *Min x2) -9/Mines (discovered 2 exits: [*Mat] / *Exi) -9/Exiles History --------- Turn | Location | Event 1 | -11/Scrapyard | Discovered new exit (range 2) 24 | -11/Scrapyard | Entered Materials 238 | -10/Materials | Discovered new exit (range 15) 267 | -10/Materials | Central database locked down 339 | -10/Materials | Build established: Mutant 341 | -10/Materials | Discovered new exit (range 16) 1184 | -10/Materials | Discovered new exit (range 10) 1402 | -10/Materials | Discovered new exit (range 9) 2705 | -10/Materials | Entered Mines 2758 | -10/Mines | Discovered new exit (range 3) 2910 | -10/Mines | Met a Derelict shopkeep closing up shop 3260 | -10/Mines | Learned Materials security intel 3471 | -10/Mines | Learned location of Storage (-7) 3583 | -10/Mines | Discovered new exit (range 10) 4039 | -10/Mines | Joined a pair of Derelicts in attacking an 0b10 outpost 4429 | -10/Mines | Entered Materials 4429 | -9/Materials | Evolved 2 slots: Propulsion x1, Utility x1 4891 | -9/Materials | Identified exit to Mines 5344 | -9/Materials | Discovered new exit (range 6) 5581 | -9/Materials | Discovered new exit (range 8) 5669 | -9/Materials | Repaired Broken Imp. Grenade Launcher 6208 | -9/Materials | Discovered new exit (range 16) 6243 | -9/Materials | Central database locked down 6330 | -9/Materials | Entered Mines 6544 | -9/Mines | Discovered new exit (range 7) 6665 | -9/Mines | Deemed a non-threat by the Exiles lab entrance 6666 | -9/Mines | Discovered new exit (range 5) 6716 | -9/Mines | Met a Derelict testing a Signal Generator 6794 | -9/Mines | Entered Exiles 6794 | -9/Exiles | Accompanied by 1 ally 6832 | -9/Exiles | Met 8R-AWN 6861 | -9/Exiles | Met EX-HEX 6922 | -9/Exiles | Met EX-DEC 6932 | -9/Exiles | Learned location of Zion (-6) 6960 | -9/Exiles | Met EX-BIN 7210 | -9/Exiles | Aligned with FarCom system 7212 | -9/Exiles | Given EX-Vault access code 7248 | -9/Exiles | Opened EX-Vault 7265 | -9/Exiles | Found XL Autogun Array 7268 | -9/Exiles | Found Deploy-a-Sentry 7271 | -9/Exiles | Found Deploy-a-Sentry 7274 | -9/Exiles | Found Deploy-a-Sentry 7338 | -9/Exiles | Warned to stay clear of 0b10 Research branches 7662 | -9/Exiles | Attacked by the Exiles 7711 | -9/Exiles | DAS Turret deployed 7778 | -9/Exiles | DAS Turret deployed 7805 | -9/Exiles | Allies destroyed 8R-AWN 8032 | -9/Exiles | Core integrity fell below 50% 8153 | -9/Exiles | Lost 4 parts (2n1u1w) 8222 | -9/Exiles | Destroyed EX-HEX 8329 | -9/Exiles | Destroyed EX-BIN 8384 | -9/Exiles | Found Prototype Device 8385 | -9/Exiles | Identified System Purifier 8454 | -9/Exiles | Core integrity fell below 20% 8463 | -9/Exiles | System corruption reached 10% 8465 | -9/Exiles | Destroyed by EX-DEC with AWS/EX-DEC Last Messages --------------- 5L-KAT suffers critical hit (Burn). 5L-KAT destroyed. Acquired Prototype Device. Identified System Purifier. Acquired 17 matter. Acquired Unknown Protection. Identified Lgt. Armor Plating. System corrupted: Matter fused (-5). Acquired Lrg. Storage Unit. Dropped Huge Storage Unit. Acquired Assault Cannon. Acquired 13 matter. Lgt. Treads destroyed. System corrupted: Matter fused (-7). Machine disabled. Mak. Power Source destroyed. Lgt. Armor Plating destroyed. EX-DEC suffers critical hit (Burn). Machine disabled. Imp. Heat Sink destroyed. Map ----- +----------------------------------------------------+ | ??????????????????????????????????????????#" | | ??????????????????????????????????????????#"""" | | ??????????????????????????????????????????#"" | | ??????????????????????????????????????????#" | | ??????????????????????????????????????????#""" | | ??????????????????????????????????????????## | | ???????????????????????????????????????????#"" | | ???????????????????????????????????????????##""" | | ????????????????????????????????????????????##"""" | | ?????????????????????????????????????????????### | | ???????????????????????????????????????????????### | | ?????????????????????????????????????????????????? | | ?????????????????????????????????????????????????? | | ?????????????????????????????????????????????????? | | ?????????????????????????????????????????????????? | | ?????????????????????#####?????????????????###???? | | ???????????????????#""""""???????"""""???#"""""??? | | ????????????????????"" "?????"""""""????"""""""? | | ???????????????????#" ????"""""" "#??#" """"# | | ????????????????????"" "?#""#""" """????"" """? | | ????????????????????"" "?#""#"" ""????"" ""? | | ???????????????#######"""###""###"""########"""### | | ??????????????#" "" "" """"""" """""""" """ | | ??????????????# """""" """ "" | | ??????????????#""" c = | | ???????????????""" @ !! ! | | ??????????????#"" ! ! | | ??????????????#""" " !!" | | ??????????????#"" """ """""" """"" " | | ??????????????########"""########"""###""###"""### | | ????????????????????"" "?????"" ""#""#"" ""? | | ????????????????????""" ""?????""" ""#""#""" ""? | | ???????????????????#" """ ????#" """"""""#" " "# | | ????????????????????""""""?????"""""""????"""""""? | | ??????????????????????""?"?????""""""?????"""""""# | | ????????????????????????????????????????????####?? | | ?????????????????????????????????????????????????? | | ?????????????????????????????????????????????????? | | ?????????????????????????????????????????????????? | | ?????????????????????????????????????????????????? | | | | | | | | | | | | | | | | | | | | | +----------------------------------------------------+ Best States ------------- Heat Dissipation 42 Energy Generation 15 Energy Capacity 280 Matter Stores 300 Matter Capacity 300 Sight Range 16 Terrain Scan Density 10 Armor Coverage 225 Evasion (%) 55 Targeting Accuracy 8 Recoil Reduction 3 Item Schematics ----------------- Hcp. Storage Unit | -10/Materials | Hacked Lrg. Storage Unit | -10/Materials | Hacked Imp. Grenade Launcher | -9/Materials | Scanalyzed Imp. Heat Sink | -9/Materials | Scanalyzed Robot Schematics ------------------ None Fabricated ------------ Nothing Alien Tech Used ----------------- None Achievements -------------- None Challenges ------------ None Game ------ Seed BoreMagneticDisintegrator Manual? 0 Play Time 00:42:12 Cumulative 274.7 hours Start 2021.08.20 @ 22:36:56 End 2021.08.20 @ 23:36:58 Sessions 1 Manual Loads 0 Difficulty Rogue Special Mode None Game No. 321 Rogue 321 Adventurer 0 Explorer 0 Win Type - Total 5 Types 5/0/0/0/0/0/0/0/0 Lore% 69 Gallery% 85 Achievement% 65 Wizard Run 0 Options --------- ASCII 0 Keyboard 0 Movement Mouse Keybinds 1 Fullscreen 2 Font 24/Smallcaps Map View 76x50 Tactical HUD 1 Map Filters NONE Filters NONE Steam 1 RUN: 920c3855-8a3b-4aa4-95ec-32aa3d1e0bc2